bitfinex-derivatives/quotes_BTCF0:USTF0_20240829
["timestamp","ask_amount","ask_price","bid_price","bid_amount"]
[1724948073551,0.44221524,60942.0,60934.0,0.082034]
[1724948073735,0.002,60937.0,60936.0,0.001]
[1724948074050,0.004,60937.0,60936.0,0.084032]
[1724948075041,0.3648,60937.0,60936.0,0.084032]
[1724948075349,0.42985471,60937.0,60936.0,0.084032]
[1724948075552,0.3648,60937.0,60936.0,0.084032]
[1724948075747,0.42986139,60937.0,60936.0,0.084032]
[1724948076145,0.42786139,60937.0,60936.0,0.083032]
[1724948076839,0.43086139,60937.0,60936.0,0.084032]
[1724948077045,0.43086011,60937.0,60936.0,0.084032]
[1724948078444,0.3658,60937.0,60936.0,0.084032]
[1724948087668,0.3658,60937.0,60936.0,0.166064]
[1724948088171,0.44721524,60937.0,60936.0,0.166064]
[1724948089370,0.3658,60937.0,60936.0,0.166064]
[1724948090671,0.44725162,60937.0,60936.0,0.166064]
[1724948090863,0.3658,60937.0,60936.0,0.166064]
[1724948092068,0.3658,60937.0,60936.0,0.276064]
[1724948094367,0.44729263,60937.0,60936.0,0.276064]
[1724948094567,0.44731153,60937.0,60936.0,0.276064]
[1724948094770,0.3658,60937.0,60936.0,0.276064]
[1724948095065,0.44731185,60937.0,60936.0,0.358096]
[1724948095473,0.278465,60937.0,60936.0,0.440128]
[1724948095766,0.06523411,60938.0,60936.0,0.718896]
[1724948095966,0.06523411,60938.0,60937.0,0.328124]
[1724948096168,0.06523411,60938.0,60937.0,0.406324]
[1724948096571,0.08151185,60942.0,60937.0,0.160231]
[1724948096768,0.08151185,60942.0,60941.0,0.11]
[1724948097071,0.00024616,60946.0,60945.0,0.08202]
[1724948097882,0.09817526,60946.0,60945.0,0.08202]
[1724948098070,0.00024616,60946.0,60945.0,0.08202]
[1724948098377,0.00024616,60946.0,60945.0,0.19202]
[1724948098573,0.09817526,60946.0,60945.0,0.19202]
[1724948098781,0.09817526,60946.0,60945.0,0.27404]
[1724948099168,0.00024616,60946.0,60945.0,0.27404]
[1724948099368,0.00024616,60946.0,60945.0,0.35706]
[1724948099871,0.00024616,60946.0,60945.0,0.35806]
[1724948100067,0.00024616,60946.0,60945.0,0.37753491]
[1724948100483,0.00024616,60946.0,60945.0,0.86977491]
[1724948100664,0.08188538,60946.0,60945.0,0.86977491]
[1724948101078,0.00024616,60946.0,60945.0,0.86977491]
[1724948102671,0.00024616,60946.0,60945.0,0.18551491]
[1724948102976,0.08188538,60946.0,60945.0,0.10349491]
[1724948103171,0.00024616,60946.0,60945.0,0.21349491]
[1724948104475,0.00024616,60946.0,60945.0,0.29551491]
[1724948104778,1.6e-07,60946.0,60945.0,1.55179491]
[1724948104978,1.6e-07,60946.0,60945.0,0.95179491]
[1724948105279,1.6e-07,60946.0,60945.0,0.45955491]
[1724948106081,1.6e-07,60946.0,60945.0,0.62955491]
[1724948106275,0.06523838,60946.0,60945.0,0.62955491]
[1724948107677,0.06523838,60946.0,60945.0,0.18551491]
[1724948107871,1.6e-07,60946.0,60945.0,0.10349491]
[1724948108672,0.08201916,60946.0,60945.0,0.002]
[1724948108873,0.08148928,60946.0,60945.0,0.08402]
[1724948109280,1.6e-07,60946.0,60945.0,0.08402]
[1724948111580,0.08201916,60946.0,60945.0,0.08402]
[1724948112289,0.16351209,60946.0,60945.0,0.08402]
[1724948112984,0.08201916,60946.0,60945.0,0.08402]
[1724948114280,1.6e-07,60946.0,60945.0,0.08402]
[1724948114583,1.6e-07,60946.0,60945.0,1.0203]
[1724948114780,1.6e-07,60946.0,60945.0,1.1019]
[1724948115688,1.6e-07,60946.0,60945.0,1.7019]
[1724948115877,1.6e-07,60946.0,60945.0,1.1019]
[1724948116274,8.5e-07,60948.0,60947.0,0.082017]
[1724948116591,0.3608,60954.0,60953.0,0.164018]
[1724948116788,0.3608,60954.0,60953.0,0.444018]
[1724948118988,0.3608,60954.0,60953.0,0.164018]
[1724948118989,0.44229929,60954.0,60953.0,0.164018]
[1724948119486,0.44229929,60954.0,60953.0,0.165018]
[1724948119793,0.3608,60954.0,60953.0,0.165018]
[1724948119991,0.3608,60954.0,60953.0,0.166018]
[1724948120186,0.3608,60954.0,60953.0,0.18629116]
[1724948126497,0.3608,60954.0,60953.0,0.084009]
[1724948131991,0.3608,60954.0,60953.0,0.194009]
[1724948132799,0.3608,60954.0,60953.0,0.084009]
[1724948134298,0.3608,60954.0,60953.0,0.276018]
[1724948134488,0.3608,60954.0,60953.0,0.358027]
[1724948134688,0.4588074,60954.0,60953.0,0.358027]
[1724948134888,0.3608,60954.0,60953.0,0.358027]
[1724948135397,0.3608,60954.0,60953.0,0.276018]
[1724948137991,0.3608,60954.0,60953.0,0.248027]
[1724948139798,0.0980074,60956.0,60953.0,0.002]
[1724948139994,0.00024616,60960.0,60956.0,0.082005]
[1724948140198,0.08194919,60960.0,60959.0,0.28]
[1724948140497,0.08170303,60962.0,60961.0,0.245997]
[1724948140797,0.08170303,60963.0,60962.0,0.245991]
[1724948141103,0.08170303,60964.0,60963.0,0.245988]
[1724948141296,0.08170303,60964.0,60962.0,0.28]
[1724948141297,3e-08,60966.0,60964.0,0.32798]
[1724948141501,0.0980074,60973.0,60964.0,0.081995]
[1724948141803,0.09825356,60975.0,60974.0,0.081981]
[1724948142009,0.00024616,60975.0,60974.0,0.165281]
[1724948143493,0.00024616,60975.0,60974.0,0.166281]
[1724948143703,0.00024616,60975.0,60974.0,0.082981]
[1724948144101,0.18023356,60975.0,60974.0,0.002]
[1724948144404,0.08222616,60975.0,60974.0,0.002]
[1724948145003,0.44302616,60975.0,60974.0,0.002]
[1724948147001,0.44302616,60975.0,60974.0,0.083981]
[1724948152810,0.081987,60970.0,60969.0,0.0038]
[1724948153010,0.081989,60968.0,60967.0,0.08199]
[1724948154115,0.080989,60968.0,60967.0,0.08299]
[1724948155013,0.162978,60968.0,60967.0,0.08299]
[1724948155316,0.082,60960.0,60958.0,0.082002]
[1724948155505,0.082,60960.0,60951.0,0.3588]
[1724948155506,0.4428,60960.0,60951.0,0.3588]
[1724948155818,0.5238,60960.0,60956.0,0.082004]
[1724948156611,0.5258,60960.0,60959.0,0.00124616]
[1724948156820,0.5268,60960.0,60959.0,0.00224616]
[1724948158110,1.00127591,60960.0,60959.0,0.00224616]
[1724948158316,1.03241734,60960.0,60959.0,0.00224616]
[1724948159613,0.95041734,60960.0,60959.0,0.00224616]
[1724948162916,0.95041784,60960.0,60959.0,0.00224616]
[1724948163116,1.03241784,60960.0,60959.0,0.00224616]
[1724948163327,0.08203,60940.0,60937.0,0.04923064]
[1724948163513,0.08203,60940.0,60937.0,0.0842]
[1724948165115,0.08203,60940.0,60933.0,0.16204616]
[1724948165116,0.082035,60934.0,60933.0,0.00024616]
[1724948165313,0.442835,60934.0,60933.0,0.00024616]
[1724948165511,0.3608,60934.0,60925.0,0.164047]
[1724948165707,0.3608,60928.0,60925.0,0.164047]
[1724948166414,0.3608,60928.0,60925.0,0.082047]
[1724948166616,0.3598,60928.0,60925.0,0.082047]
[1724948166809,0.3598,60928.0,60922.0,0.0817]
[1724948167008,0.44285,60923.0,60922.0,0.0817]
[1724948167420,0.44285,60923.0,60921.0,0.0787]
[1724948167421,0.082051,60922.0,60921.0,0.0787]
[1724948168222,0.082051,60922.0,60901.0,0.3608]
[1724948168223,0.49244,60921.0,60901.0,0.3608]
[1724948168418,0.3608,60923.0,60901.0,0.3608]
[1724948168419,0.082062,60915.0,60905.0,0.1619]
[1724948168619,0.3608,60917.0,60910.0,0.082067]
[1724948168620,0.082062,60914.0,60910.0,0.082067]
[1724948168813,0.082062,60914.0,60911.0,0.082066]
[1724948169020,0.081062,60914.0,60911.0,0.082066]
[1724948169326,0.079062,60914.0,60911.0,0.082066]
[1724948170023,0.080062,60914.0,60911.0,0.082066]
[1724948170218,0.082063,60913.0,60911.0,0.082066]
[1724948170725,0.3608,60912.0,60910.0,0.003]
[1724948171024,0.082066,60911.0,60910.0,0.003]
[1724948172112,0.3608,60912.0,60906.0,0.00024616]
[1724948172315,0.440871,60907.0,60906.0,0.00024616]
[1724948172522,0.437871,60907.0,60906.0,0.00024616]
[1724948173218,0.3608,60907.0,60906.0,0.00024616]
[1724948173419,0.3608,60912.0,60911.0,0.082066]
[1724948173623,0.14060616,60919.0,60911.0,0.082066]
[1724948173819,0.082064,60913.0,60911.0,0.082066]
[1724948174120,0.3608,60915.0,60907.0,0.08207]
[1724948174324,0.082071,60907.0,60906.0,0.00124616]
[1724948174918,0.164142,60907.0,60906.0,0.00124616]
[1724948175221,0.164142,60907.0,60896.0,0.1628]
[1724948175222,0.082085,60897.0,60896.0,0.1628]
[1724948175424,0.442885,60897.0,60896.0,0.1628]
[1724948175623,0.441885,60897.0,60896.0,0.1628]
[1724948175820,0.441885,60897.0,60896.0,0.244886]
[1724948176524,0.450885,60897.0,60896.0,0.245886]
[1724948176722,0.459885,60897.0,60896.0,0.245886]
[1724948177518,0.459885,60897.0,60896.0,0.001]
[1724948178817,0.082111,60878.0,60877.0,0.082111]
[1724948180138,0.001,60878.0,60877.0,0.3728]
[1724948180430,0.002,60878.0,60877.0,0.094112]
[1724948181634,0.001,60878.0,60874.0,0.01980245]
[1724948181929,0.082113,60877.0,60871.0,0.1566]
[1724948182140,0.3608,60874.0,60871.0,0.1566]
[1724948182322,0.082119,60872.0,60871.0,0.1566]
[1724948182628,0.082119,60872.0,60871.0,0.23872]
[1724948182837,0.3608,60874.0,60871.0,0.23872]
[1724948182838,0.3608,60874.0,60872.0,0.082118]
[1724948183230,0.3608,60874.0,60871.0,0.1566]
[1724948183420,0.083119,60872.0,60871.0,0.1566]
[1724948184134,0.3618,60874.0,60872.0,0.082118]
[1724948184831,0.082117,60873.0,60872.0,0.082118]
[1724948185430,0.082117,60873.0,60872.0,0.085118]
[1724948185733,0.3608,60874.0,60873.0,0.082117]
[1724948185927,0.442916,60874.0,60873.0,0.082117]
[1724948187139,0.3608,60874.0,60873.0,0.083117]
[1724948187828,0.442916,60874.0,60873.0,0.001]
[1724948188029,0.525032,60874.0,60873.0,0.005]
[1724948188826,0.525032,60874.0,60863.0,0.0783]
[1724948188827,0.082127,60866.0,60863.0,0.0783]
[1724948189026,0.442927,60866.0,60865.0,0.082128]
[1724948189335,0.082136,60859.0,60858.0,0.0038]
[1724948189525,0.082144,60855.0,60854.0,0.082143]
[1724948189730,0.081144,60855.0,60854.0,0.082143]
[1724948190130,0.081139,60858.0,60847.0,0.0038]
[1724948190131,0.01944384,60858.0,60847.0,0.0038]
[1724948190426,0.080142,60855.0,60854.0,0.082142]
[1724948191628,0.080142,60855.0,60854.0,0.083142]
[1724948191829,0.080142,60855.0,60854.0,0.001]
[1724948192030,0.084142,60855.0,60854.0,0.001]
[1724948193135,0.084142,60855.0,60850.0,0.082147]
[1724948193136,0.082145,60853.0,60850.0,0.082147]
[1724948193336,0.442945,60853.0,60850.0,0.082147]
[1724948194135,0.442945,60853.0,60851.0,0.082146]
[1724948194941,0.082146,60852.0,60851.0,0.082146]
[1724948195440,0.082146,60852.0,60844.0,0.38108292]
[1724948195630,0.3608,60853.0,60842.0,0.0038]
[1724948195631,0.082158,60843.0,60842.0,0.0038]
[1724948195940,0.082164,60839.0,60838.0,0.082164]
[1724948196442,0.082164,60839.0,60838.0,0.10157156]
[1724948197135,0.082164,60839.0,60838.0,0.082164]
[1724948197330,0.08217,60834.0,60833.0,0.44297]
[1724948197644,0.082164,60839.0,60833.0,0.08217]
[1724948197645,0.3608,60835.0,60833.0,0.08217]
[1724948198140,0.082181,60826.0,60825.0,0.0038]
[1724948198361,0.082185,60823.0,60818.0,0.08]
[1724948198641,0.082185,60823.0,60804.0,0.04923064]
[1724948198642,0.164392,60815.0,60804.0,0.04923064]
[1724948198850,0.3608,60805.0,60800.0,0.082215]
[1724948199140,0.082216,60800.0,60797.0,0.0751]
[1724948199546,0.443016,60800.0,60797.0,0.0751]
[1724948200042,0.3608,60800.0,60799.0,0.082217]
[1724948200253,0.36104661,60806.0,60805.0,0.082209]
[1724948200541,0.00024661,60806.0,60805.0,0.082209]
[1724948200846,0.3608,60822.0,60805.0,1.37336]
[1724948201049,0.3608,60822.0,60813.0,0.3608]
[1724948201239,0.3608,60822.0,60820.0,0.082189]
[1724948203139,0.00024661,60827.0,60820.0,1.175429]
[1724948203140,0.15432,60821.0,60820.0,1.175429]
[1724948203342,0.16832,60821.0,60820.0,1.175429]
[1724948203546,0.00024661,60827.0,60821.0,0.082187]
[1724948203848,0.00024661,60827.0,60826.0,0.3608]
[1724948204345,0.3608,60842.0,60826.0,0.525162]
[1724948204547,0.3608,60842.0,60833.0,0.3608]
[1724948204730,0.3608,60842.0,60841.0,0.08216]
[1724948205143,0.3608,60842.0,60837.0,0.082166]
[1724948205646,0.3608,60842.0,60839.0,0.082163]
[1724948205940,0.3608,60842.0,60841.0,0.08216]
[1724948206333,0.00024661,60846.0,60845.0,0.082155]
[1724948207139,0.00024661,60846.0,60841.0,0.001]
[1724948207344,0.3608,60845.0,60844.0,0.082156]
[1724948207646,0.3588,60845.0,60844.0,0.082156]
[1724948208045,0.440955,60845.0,60844.0,0.082156]
[1724948208438,0.453955,60845.0,60844.0,0.083156]
[1724948208833,0.3718,60845.0,60844.0,0.083156]
[1724948209239,0.3708,60845.0,60844.0,0.083156]
[1724948209838,0.3728,60845.0,60844.0,0.084156]
[1724948210740,0.3728,60845.0,60844.0,0.002]
[1724948210741,0.454955,60845.0,60844.0,0.002]
[1724948213646,0.454955,60845.0,60844.0,0.084156]
[1724948214549,0.3728,60845.0,60844.0,0.084156]
[1724948215145,0.454955,60845.0,60844.0,0.084156]
[1724948217848,0.454955,60845.0,60844.0,0.002]
[1724948218445,0.53711,60845.0,60844.0,0.002]
[1724948218841,0.082166,60838.0,60837.0,0.082166]
[1724948219042,0.3608,60838.0,60837.0,0.082166]
[1724948219447,0.3728,60845.0,60844.0,0.082156]
[1724948219844,0.441955,60845.0,60835.0,0.04923064]
[1724948220048,0.3598,60837.0,60836.0,0.082167]
[1724948220253,0.014,60838.0,60837.0,0.082166]
[1724948220447,0.028,60838.0,60837.0,0.083166]
[1724948220649,0.014,60838.0,60837.0,0.083166]
[1724948220865,0.013,60838.0,60837.0,0.083166]
[1724948221050,0.082164,60838.0,60837.0,0.082166]
[1724948221961,0.3608,60840.0,60839.0,0.082163]
[1724948221962,0.442962,60840.0,60839.0,0.082163]
[1724948223851,0.3748,60840.0,60839.0,0.083163]
[1724948224053,0.3888,60840.0,60839.0,0.166326]
[1724948224556,0.3748,60840.0,60839.0,0.165326]
[1724948224859,0.3888,60840.0,60839.0,0.18632306]
[1724948225054,0.3748,60840.0,60839.0,0.18532306]
[1724948225353,0.3888,60840.0,60839.0,0.18632306]
[1724948226151,0.3748,60840.0,60839.0,0.18532306]
[1724948226347,0.3888,60840.0,60839.0,0.18632306]
[1724948228454,0.553124,60840.0,60839.0,0.002]
[1724948228958,0.470962,60840.0,60839.0,0.002]
[1724948229844,0.553124,60840.0,60839.0,0.002]
[1724948230153,1.046244,60840.0,60839.0,0.002]
[1724948230551,1.09132096,60840.0,60827.0,0.0038]
[1724948230755,0.082182,60825.0,60824.0,0.082179]
[1724948231550,0.3608,60828.0,60820.0,0.163088]
[1724948231551,0.082187,60821.0,60820.0,0.163088]
[1724948231856,0.08219,60819.0,60818.0,0.00024661]
[1724948232657,0.36219,60819.0,60818.0,0.00024661]
[1724948233049,0.93681642,60819.0,60808.0,0.0038]
[1724948233250,0.93681642,60819.0,60803.0,0.04923064]
[1724948233251,0.442999,60813.0,60803.0,0.04923064]
[1724948233555,0.442999,60813.0,60811.0,0.0822]
[1724948233763,0.441999,60813.0,60811.0,0.0822]
[1724948234055,0.440999,60813.0,60811.0,0.0822]
[1724948234557,0.440999,60813.0,60806.0,0.38098191]
[1724948234558,0.453999,60813.0,60812.0,0.0822]
[1724948235063,0.082204,60810.0,60806.0,0.02018191]
[1724948235252,0.082204,60810.0,60802.0,0.0828]
[1724948235253,0.3598,60807.0,60802.0,0.0828]
[1724948236060,0.082212,60803.0,60802.0,0.0828]
[1724948237157,0.090212,60803.0,60802.0,0.165013]
[1724948237360,0.007,60803.0,60802.0,0.165013]
[1724948237659,0.3608,60809.0,60808.0,0.082205]
[1724948237866,0.3608,60809.0,60808.0,0.65777]
[1724948238052,0.3608,60809.0,60808.0,1.25777]
[1724948238448,0.3608,60809.0,60808.0,1.175565]
[1724948238649,0.3608,60809.0,60808.0,0.130605]
[1724948239049,0.3888,60809.0,60808.0,0.131605]
[1724948239450,0.028,60809.0,60808.0,0.131605]
[1724948240057,0.014,60809.0,60808.0,0.131605]
[1724948240262,0.026,60809.0,60808.0,0.131605]
[1724948240463,0.026,60809.0,60808.0,0.15155062]
[1724948240949,0.3608,60817.0,60808.0,1.40932062]
[1724948241155,0.3608,60817.0,60816.0,0.082194]
[1724948241965,0.00024661,60818.0,60817.0,0.246579]
[1724948242159,0.00024661,60818.0,60817.0,0.293179]
[1724948242557,0.0038,60827.0,60826.0,0.164362]
[1724948242755,0.38472764,60841.0,60817.0,1.18728]
[1724948242756,0.0038,60837.0,60836.0,0.082167]
[1724948243066,0.3608,60841.0,60823.0,0.3608]
[1724948243260,0.082163,60840.0,60838.0,0.082164]
[1724948243659,0.3608,60841.0,60838.0,0.082164]
[1724948244253,0.082163,60839.0,60838.0,0.082164]
[1724948244962,0.082163,60839.0,60838.0,0.083164]
[1724948245556,0.082163,60839.0,60838.0,0.084164]
[1724948245557,0.087163,60839.0,60838.0,0.084164]
[1724948246053,0.094163,60839.0,60838.0,0.084164]
[1724948246456,0.094163,60839.0,60838.0,0.002]
[1724948246761,0.012,60839.0,60824.0,0.6821]
[1724948246959,0.082178,60829.0,60828.0,0.082177]
[1724948248263,0.442969,60835.0,60834.0,0.082168]
[1724948248767,0.3608,60835.0,60834.0,0.082168]
[1724948249058,0.442968,60835.0,60834.0,0.082168]
[1724948249461,0.082177,60829.0,60828.0,0.083178]
[1724948249657,0.089177,60829.0,60828.0,0.084178]
[1724948249861,0.089177,60829.0,60828.0,0.002]
[1724948250054,0.089177,60829.0,60828.0,0.001]
[1724948250055,0.134777,60829.0,60828.0,0.001]
[1724948250872,0.134777,60829.0,60828.0,0.084178]
[1724948251261,0.127777,60829.0,60828.0,0.083178]
[1724948251466,0.127777,60829.0,60822.0,0.082186]
[1724948251662,0.3608,60823.0,60822.0,0.082186]
[1724948252258,0.3598,60823.0,60822.0,0.082186]
[1724948252864,0.441985,60823.0,60822.0,0.082186]
[1724948253057,0.443985,60823.0,60822.0,0.083186]
[1724948253261,0.3618,60823.0,60822.0,0.083186]
[1724948253866,0.007,60823.0,60822.0,0.084186]
[1724948254070,0.3608,60830.0,60822.0,0.002]
[1724948254274,0.3608,60830.0,60829.0,0.246531]
[1724948254454,0.3608,60830.0,60829.0,0.082177]
[1724948255366,0.3698,60830.0,60829.0,0.082177]
[1724948255568,0.3748,60830.0,60829.0,0.083177]
[1724948256168,0.3748,60830.0,60829.0,0.084177]
[1724948256169,0.3658,60830.0,60829.0,0.084177]
[1724948256568,0.447975,60830.0,60829.0,0.002]
[1724948257862,0.61122657,60830.0,60829.0,0.002]
[1724948258064,0.87905552,60830.0,60821.0,0.082186]
[1724948258269,0.082191,60818.0,60817.0,0.128792]
[1724948259372,0.081191,60818.0,60817.0,0.128792]
[1724948260067,0.083191,60818.0,60817.0,0.129792]
[1724948261068,0.092191,60818.0,60817.0,0.130792]
[1724948261969,0.092191,60818.0,60817.0,0.0486]
[1724948262164,0.174382,60818.0,60817.0,0.002]
[1724948262968,0.092191,60818.0,60817.0,0.002]
[1724948263278,0.092191,60818.0,60817.0,0.084193]
[1724948264969,0.011,60818.0,60817.0,0.084193]
[1724948265887,0.011,60818.0,60817.0,0.166386]
[1724948266064,0.011,60818.0,60817.0,0.248579]
[1724948268678,0.011,60818.0,60817.0,1.341859]
[1724948269376,0.3608,60822.0,60821.0,0.246561]
[1724948269770,0.3608,60822.0,60821.0,0.082187]
[1724948270575,0.44193474,60822.0,60821.0,0.082187]
[1724948270771,0.45593474,60822.0,60821.0,0.082187]
[1724948270972,0.09513474,60822.0,60821.0,0.164374]
[1724948271176,0.09513474,60822.0,60821.0,0.082187]
[1724948271773,0.10913474,60822.0,60821.0,0.083187]
[1724948272979,0.10913474,60822.0,60821.0,0.10346033]
[1724948273479,0.10913474,60822.0,60821.0,0.18564733]
[1724948273680,0.10913474,60822.0,60821.0,0.10346033]
[1724948273885,0.028,60822.0,60821.0,0.10346033]
[1724948276588,0.028,60822.0,60821.0,0.083187]
[1724948276781,0.028,60822.0,60821.0,0.165374]
[1724948277578,0.028,60822.0,60821.0,0.083187]
[1724948279987,0.110186,60822.0,60821.0,0.083187]
[1724948280590,0.028,60822.0,60821.0,0.165374]
[1724948280780,0.09774646,60825.0,60824.0,0.164366]
[1724948281389,0.09774646,60825.0,60824.0,0.082183]
[1724948281689,0.45854646,60825.0,60824.0,0.082183]
[1724948281989,0.55372846,60825.0,60824.0,0.083183]
[1724948282187,0.082189,60820.0,60819.0,0.02000432]
[1724948282492,0.441989,60820.0,60819.0,0.082189]
[1724948283595,0.441989,60820.0,60819.0,0.001]
[1724948283596,0.524179,60820.0,60819.0,0.001]
[1724948283778,0.0822,60812.0,60811.0,0.0483]
[1724948283974,0.443,60812.0,60811.0,0.0483]
[1724948284184,0.443,60812.0,60803.0,0.37053064]
[1724948284185,0.85312,60812.0,60804.0,0.08221]
[1724948284380,0.44301,60805.0,60801.0,0.082214]
[1724948284583,0.08127126,60804.0,60800.0,0.046]
[1724948284784,0.08127126,60803.0,60800.0,0.06627522]
[1724948284986,0.08027126,60804.0,60801.0,0.082214]
[1724948285180,0.3608,60819.0,60811.0,0.082201]
[1724948285181,0.09774646,60815.0,60811.0,0.082201]
[1724948285385,0.09774646,60816.0,60811.0,0.082201]
[1724948285782,0.4074,60819.0,60811.0,0.082201]
[1724948285783,0.09799307,60818.0,60811.0,0.082201]
[1724948285985,0.3618,60812.0,60811.0,0.083201]
[1724948286487,0.002,60812.0,60811.0,0.083201]
[1724948287201,0.002,60812.0,60811.0,0.18509969]
[1724948287492,0.002,60812.0,60811.0,0.10289869]
[1724948287698,0.006,60812.0,60811.0,0.084201]
[1724948289684,0.006,60812.0,60811.0,0.002]
[1724948289880,0.23344646,60812.0,60811.0,0.002]
[1724948290293,0.1357,60812.0,60811.0,0.002]
[1724948290979,0.006,60812.0,60811.0,0.084201]
[1724948292293,0.006,60812.0,60811.0,0.166402]
[1724948293282,0.006,60812.0,60811.0,0.084201]
[1724948296398,0.0882,60812.0,60811.0,0.002]
[1724948296904,0.66372,60812.0,60811.0,0.002]
[1724948297195,0.62812,60812.0,60811.0,0.002]
[1724948297396,0.1348,60812.0,60811.0,0.002]
[1724948298997,0.71032,60812.0,60811.0,0.002]
[1724948299898,0.082213,60802.0,60800.0,0.38751812]
[1724948300103,0.443013,60802.0,60801.0,0.082214]
[1724948300302,0.443013,60802.0,60800.0,0.046]
[1724948300303,0.082214,60801.0,60800.0,0.046]
[1724948300601,0.082218,60799.0,60798.0,0.082218]
[1724948301693,0.082218,60799.0,60789.0,0.08223]
[1724948301694,0.08223,60790.0,60789.0,0.08223]
[1724948302003,0.44303,60790.0,60789.0,0.08223]
[1724948302199,0.44003,60790.0,60789.0,0.08223]
[1724948302794,0.43803,60790.0,60789.0,0.08223]
[1724948303500,0.43803,60790.0,60789.0,0.08723]
[1724948303702,0.43803,60790.0,60789.0,0.09923]
[1724948303900,0.43903,60790.0,60789.0,0.017]
[1724948304596,0.43803,60790.0,60789.0,0.011]
[1724948305394,0.79883,60790.0,60789.0,0.011]
[1724948306295,0.90064924,60790.0,60789.0,0.011]
[1724948306490,0.90064924,60790.0,60789.0,0.007]
[1724948306701,1.18764924,60790.0,60789.0,0.007]
[1724948306998,1.18764924,60790.0,60779.0,0.0498]
[1724948306999,2.19893824,60790.0,60779.0,0.0498]
[1724948307310,0.3598,60780.0,60779.0,0.046]
[1724948307494,0.442043,60780.0,60779.0,0.128244]
[1724948307690,0.3598,60780.0,60779.0,0.128244]
[1724948307995,0.442043,60780.0,60779.0,0.128244]
[1724948309205,0.082244,60779.0,60776.0,0.082248]
[1724948309403,0.128844,60779.0,60776.0,0.082248]
[1724948309605,0.128844,60779.0,60777.0,0.082246]
[1724948309908,0.128844,60779.0,60778.0,0.222606]
[1724948310402,0.571888,60779.0,60778.0,0.14036]
[1724948310913,0.573888,60779.0,60778.0,0.14036]
[1724948315608,0.491644,60779.0,60778.0,0.14036]
[1724948316501,0.491864,60779.0,60778.0,0.14036]
[1724948317108,0.36302,60779.0,60778.0,0.222606]
[1724948317810,0.445264,60779.0,60778.0,0.222606]
[1724948319608,1.325264,60779.0,60778.0,0.14036]
[1724948319809,1.301108,60779.0,60778.0,0.14036]
[1724948320001,0.445264,60779.0,60778.0,0.14036]
[1724948320404,0.445264,60779.0,60778.0,0.222606]
[1724948320603,0.36302,60779.0,60778.0,0.222606]
[1724948320909,0.36202,60779.0,60778.0,0.223606]
[1724948321111,0.37402,60779.0,60778.0,0.223606]
[1724948321413,0.456264,60779.0,60778.0,0.223606]
[1724948322001,0.455264,60779.0,60778.0,0.223606]
[1724948322204,0.545508,60779.0,60778.0,0.14236]
[1724948323305,0.545508,60779.0,60770.0,0.0453]
[1724948323306,2.001352,60779.0,60770.0,0.0453]
[1724948323616,0.443055,60771.0,60770.0,0.0453]
[1724948324205,0.52531,60771.0,60770.0,0.0453]
[1724948324614,0.54539075,60771.0,60770.0,0.0453]
[1724948325317,0.54939075,60771.0,60770.0,0.0453]
[1724948325802,0.63164575,60771.0,60770.0,0.0453]
[1724948325999,0.63164575,60771.0,60763.0,0.16436]
[1724948326000,0.164524,60766.0,60763.0,0.16436]
[1724948326205,0.164528,60764.0,60763.0,0.16436]
[1724948326915,0.082264,60764.0,60763.0,0.16436]
[1724948328314,0.10021728,60764.0,60763.0,0.16436]
[1724948328806,0.10621728,60764.0,60763.0,0.16536]
[1724948329121,0.006,60764.0,60763.0,0.247626]
[1724948330121,0.3608,60771.0,60763.0,1.341346]
[1724948330414,0.3608,60771.0,60770.0,0.082256]
[1724948331715,0.3668,60771.0,60770.0,0.082256]
[1724948332118,0.3748,60771.0,60770.0,0.083256]
[1724948332320,0.457055,60771.0,60770.0,0.083256]
[1724948332511,0.955735,60771.0,60770.0,0.001]
[1724948332708,0.082264,60765.0,60763.0,0.247626]
[1724948332911,0.443064,60765.0,60763.0,0.247626]
[1724948333108,0.443064,60765.0,60763.0,0.246626]
[1724948333315,0.442064,60765.0,60763.0,0.246626]
[1724948333516,0.082264,60764.0,60763.0,0.246626]
[1724948333715,0.082264,60764.0,60763.0,0.16436]
[1724948334110,0.082264,60764.0,60763.0,0.16536]
[1724948335221,0.088264,60764.0,60763.0,0.16536]
[1724948335521,0.088264,60764.0,60763.0,0.16436]
[1724948335522,0.10858482,60764.0,60763.0,0.16436]
[1724948335814,0.11458482,60764.0,60763.0,0.16536]
[1724948339521,0.19684882,60764.0,60763.0,0.16536]
[1724948340221,0.19684882,60764.0,60753.0,0.04917183]
[1724948340222,0.082278,60754.0,60753.0,0.04917183]
[1724948340429,0.164556,60754.0,60753.0,0.04917183]
[1724948340616,0.082275,60757.0,60753.0,0.04917183]
[1724948340920,0.36164,60758.0,60757.0,0.082274]
[1724948341123,0.36164,60758.0,60753.0,0.04917183]
[1724948341124,0.3608,60758.0,60754.0,0.082278]
[1724948341320,0.362274,60757.0,60756.0,0.082275]
[1724948341521,0.082274,60757.0,60756.0,0.082274]
[1724948341919,0.3608,60758.0,60757.0,0.082274]
[1724948342426,0.3608,60758.0,60757.0,0.164548]
[1724948342830,0.0002468,60760.0,60759.0,0.164542]
[1724948344829,0.0012468,60760.0,60759.0,0.164542]
[1724948345329,0.0022468,60760.0,60759.0,0.082271]
[1724948346028,0.0012468,60760.0,60759.0,0.164542]
[1724948348029,0.0012468,60760.0,60759.0,0.082271]
[1724948348231,0.0835168,60760.0,60759.0,0.082271]
[1724948349425,0.10317321,60760.0,60759.0,0.082271]